fUST/lending_fUST_20240929
["ID","MTS","AMOUNT","RATE_DAILY","PERIOD"]
[339403045,1727571043929,-150.112233,0.000168,2]
[339403046,1727571043938,-382.488627,0.000168,2]
[339403047,1727571043948,-382.488627,0.000168,2]
[339403048,1727571043957,-150.0,0.000168,2]
[339403049,1727571043967,-150.112233,0.000168,2]
[339403050,1727571043975,-150.112233,0.000168,2]
[339403051,1727571043985,-642.911126,0.00016807,2]
[339403052,1727571043995,-642.911126,0.00016807,2]
[339403053,1727571044004,-1207.205987,0.00016807,2]
[339403054,1727571044014,-1207.205987,0.00016807,2]
[339403055,1727571044023,-187.528705,0.00016807,2]
[339403056,1727571044033,-151.0,0.00016807,2]
[339403057,1727571044042,-187.528705,0.00016807,2]
[339403058,1727571044052,-1129.066985,0.00016807,2]
[339403059,1727571044062,-1129.066985,0.00016807,2]
[339403060,1727571044072,-30000.0,0.00016808,2]
[339403061,1727571044083,-151.0,0.00016808,2]
[339403062,1727571044092,-1554.306659,0.00016808,2]
[339403063,1727571044102,-151.0,0.00016808,2]
[339403064,1727571044111,-1554.306659,0.00016808,2]
[339403065,1727571044121,-166.580913,0.00016808,2]
[339403066,1727571044131,-166.580913,0.00016808,2]
[339403067,1727571044140,-3004.044776,0.00016808,2]
[339403068,1727571044150,-158.632731,0.00016808,2]
[339403069,1727571044160,-3004.044776,0.00016808,2]
[339403070,1727571044170,-158.632731,0.00016808,2]
[339403071,1727571044180,-168.029232,0.00016828,2]
[339403072,1727571044190,-168.029232,0.00016828,2]
[339403073,1727571044200,-2167.647188,0.00016828,2]
[339403074,1727571044210,-2167.647188,0.00016828,2]
[339403075,1727571044219,-2333.975707,0.00016828,2]
[339403076,1727571044229,-2333.975707,0.00016828,2]
[339403077,1727571044238,-151.0,0.00016828,2]
[339403078,1727571044247,-151.0,0.00016828,2]
[339403079,1727571044257,-1023.40560232,0.00016828,2]
[339403080,1727571044570,-40.15489278,0.00016828,2]
[339403084,1727571046578,-1680.54497872,0.00016828,2]
[339403085,1727571046634,-16.22233118,0.00016828,2]
[339403086,1727571046645,-241.74974671,0.00016828,2]
[339403090,1727571397401,1000.0,0.00014,2]
[339403091,1727571501908,-196.81447112,0.0001536,2]
[339403092,1727571501931,-300.0,0.00015447,2]
[339403093,1727571501954,-300.0,0.00015447,2]
[339403094,1727571501977,-5342.48852888,0.00015448,2]
[339403097,1727571542765,-330.70364179,0.00015348,2]
[339403098,1727571542787,-463.60805821,0.00015448,2]
[339403140,1727571602928,500.0,0.0001,2]
[339403141,1727571603299,500.0,0.0001,2]
[339403142,1727571603681,500.0,0.0001,2]
[339403143,1727571604044,500.0,0.0001,2]
[339403144,1727571604420,474.51491418,0.0001,2]
[339403147,1727571636661,812.0,0.00011,2]
[339403177,1727571699052,166.10405778,0.00012,2]
[339403180,1727571700333,150.0,0.00011,2]
[339403183,1727571701289,150.0,0.00012,2]
[339403184,1727571701844,150.0,0.00013,2]
[339403185,1727571702340,151.764958,0.00014,2]
[339403223,1727572083743,1000.0,0.00014,2]
[339403226,1727572148158,-3000.0,0.00015,2]
[339403227,1727572148182,-282.9685906,0.00015103,2]
[339403248,1727572237817,-7995.9879268,0.00015242,2]
[339403249,1727572237828,-309.1433613,0.00015302,2]
[339403250,1727572237838,-317.0314094,0.00015307,2]
[339403251,1727572237847,-171.003397,0.00015498,2]
[339403252,1727572237857,-300.0,0.00015499,2]
[339403253,1727572237867,-300.0,0.00015499,2]
[339403254,1727572237877,-3000.0,0.000155,2]
[339403255,1727572237886,-171.003397,0.00015767,2]
[339403256,1727572237896,-4000.0,0.00016,2]
[339403257,1727572237905,-171.003397,0.00016036,2]
[339403258,1727572237915,-465.63646341,0.00016224,2]
[339403259,1727572237926,-171.003397,0.00016306,2]
[339403260,1727572237936,-185.0,0.0001649,2]
[339403261,1727572237945,-500.0,0.00016498,2]
[339403262,1727572237955,-500.0,0.00016498,2]
[339403263,1727572237964,-500.0,0.00016498,2]
[339403264,1727572237974,-500.0,0.00016498,2]
[339403265,1727572237983,-593.4214204,0.00016498,2]
[339403266,1727572237993,-500.0,0.00016498,2]
[339403267,1727572238002,-500.0,0.00016498,2]
[339403268,1727572238012,-500.0,0.00016498,2]
[339403269,1727572238022,-1065.83481808,0.000165,2]
[339403270,1727572238031,-1051.11808466,0.00016528,2]
[339403305,1727572240067,-0.00612189,0.00016528,2]
[339403306,1727572240079,-1130.71674771,0.00016528,2]
[339403307,1727572240089,-1000.0,0.00016609,2]
[339403308,1727572240100,-61687.08424632,0.00016609,2]
[339403309,1727572240109,-204.80393102,0.00016628,2]
[339403310,1727572240119,-300.5861908,0.00016628,2]
[339403311,1727572240128,-500.0,0.00016628,2]
[339403312,1727572240138,-500.0,0.00016628,2]
[339403313,1727572240151,-500.0,0.00016628,2]
[339403314,1727572240162,-377.37088267,0.00016628,2]
[339403315,1727572240172,-120950.919112,0.00016629,2]
[339403316,1727572240181,-1877.914825,0.00016639,2]
[339403317,1727572240191,-1877.914825,0.00016639,2]
[339403318,1727572240202,-7066.61254455,0.00016658,2]
[339403319,1727572240212,-1877.914825,0.00016671,2]
[339403320,1727572240222,-1877.914825,0.00016671,2]
[339403321,1727572240233,-173903.88053781,0.00016671,2]
[339403322,1727572240244,-154.554,0.00016683,2]
[339403323,1727572240253,-557.794,0.00016683,2]
[339403324,1727572240264,-150.112233,0.000167,2]
[339403325,1727572240275,-150.112233,0.000167,2]
[339403326,1727572240287,-150.112233,0.000167,2]
[339403327,1727572240298,-150.112233,0.000167,2]
[339403328,1727572240308,-150.112233,0.000167,2]
[339403329,1727572240319,-150.112233,0.000167,2]
[339403330,1727572240328,-150.112233,0.000167,2]
[339403331,1727572240341,-150.112233,0.000167,2]
[339403332,1727572240351,-500.0,0.00016709,2]
[339403333,1727572240364,-1000.0,0.00016709,2]
[339403334,1727572240374,-810.62867513,0.00016709,2]
[339403335,1727572240385,-2246.14378836,0.00016718,2]
[339403336,1727572240398,-18719.7769373,0.00016719,2]
[339403419,1727572291367,-284.345249,0.00015638,2]
[339403420,1727572291390,-403.57014992,0.000158,2]
[339403421,1727572291413,-1000.0,0.00016509,2]
[339403422,1727572291435,-300.0,0.00016718,2]
[339403423,1727572291458,-300.0,0.00016718,2]
[339403424,1727572291481,-102231.1421747,0.00016719,2]
[339403425,1727572291505,-1877.914825,0.00016729,2]
[339403426,1727572291528,-1877.914825,0.00016729,2]
[339403427,1727572291550,-151.0,0.00016729,2]
[339403428,1727572291573,-151.0,0.00016729,2]
[339403429,1727572291596,-240.469859,0.00016729,2]
[339403430,1727572291618,-240.469859,0.00016729,2]
[339403431,1727572291640,-30000.0,0.00016729,2]
[339403432,1727572291662,-3000.0,0.00016729,2]
[339403433,1727572291685,-207942.17305838,0.00016768,2]
[339403439,1727572414188,1000.0,0.00021,60]
[339403440,1727572435821,152.0,0.00021,60]
[339403464,1727572778683,771.0,0.00011,2]
[339403513,1727573196132,-903.81367931,0.00015545,2]
[339403515,1727573346304,2151.73153276,0.0001,2]
[339403524,1727573393791,732.0,0.00011,2]
[339403669,1727573443224,-381.88730539,0.00015545,2]
[339403670,1727573443233,-826.66314276,0.00015574,2]
[339403707,1727573446067,-766.57084174,0.00015574,2]
[339403723,1727573561322,150.0,0.00021,60]
[339403726,1727573753188,230.0,0.00014114,2]
[339403751,1727574408174,-164.9046761,0.00014697,2]
[339403752,1727574408196,-58.60269055,0.00015,2]
[339403757,1727574549147,-265.874649,0.00014518,2]
[339403758,1727574549171,-1406.7660155,0.00014631,2]
[339403759,1727574549194,-261.54557045,0.00015,2]
[339403760,1727574549219,-269.3832993,0.00015004,2]
[339403761,1727574549380,265.874649,0.00014522,2]
[339403762,1727574549416,265.874649,0.00014526,2]
[339403763,1727574549630,265.874649,0.0001453,2]
[339403764,1727574549935,265.874649,0.00014533,2]
[339403765,1727574550132,265.874649,0.00014537,2]
[339403766,1727574550344,265.874649,0.00014541,2]
[339403767,1727574550540,265.874649,0.00014545,2]
[339403768,1727574550743,121.78745748,0.00014549,2]
[339403809,1727574632385,-286.8029045,0.00014127,2]
[339403810,1727574632396,-144.08719152,0.00014549,2]
[339403811,1727574632406,-265.874649,0.00014552,2]
[339403812,1727574632416,-7.7293993,0.00014556,2]
[339403813,1727574632428,-258.1452497,0.00014556,2]
[339403814,1727574632439,-265.874649,0.0001456,2]
[339403815,1727574632450,-265.874649,0.00014564,2]
[339403816,1727574632460,-265.874649,0.00014568,2]
[339403817,1727574632470,-265.874649,0.00014571,2]
[339403818,1727574632482,-265.874649,0.00014575,2]
[339403819,1727574632492,-265.874649,0.00014579,2]
[339403820,1727574632503,-265.874649,0.00014583,2]
[339403822,1727574632514,-265.874649,0.00014587,2]
[339403824,1727574632524,-265.874649,0.0001459,2]
[339403826,1727574632534,-200.92006328,0.00015,2]
[339403829,1727574632546,-7067.94404438,0.00015168,2]
[339403831,1727574632556,-300.0,0.00015172,2]
[339403833,1727574632566,-300.0,0.00015206,2]
[339403835,1727574632576,-3461.0276871,0.00015207,2]
[339403837,1727574632585,-225.728927,0.00015473,2]
[339403838,1727574632596,-225.728927,0.00015516,2]
[339403840,1727574632606,-225.728927,0.00015558,2]
[339403842,1727574632620,-500.0,0.00015573,2]
[339403844,1727574632630,-640.75419157,0.00015573,2]
[339403846,1727574632639,-500.0,0.00015574,2]
[339403848,1727574632651,-500.0,0.00015574,2]
[339403850,1727574632661,-500.0,0.00015574,2]
[339403852,1727574632670,-500.0,0.00015574,2]
[339403853,1727574632679,-500.0,0.00015574,2]
[339403854,1727574632690,-500.0,0.00015574,2]
[339403855,1727574632701,-500.0,0.00015574,2]
[339403856,1727574632711,-500.0,0.00015574,2]
[339403857,1727574632721,-500.0,0.00015574,2]
[339403858,1727574632733,-266.0,0.00015574,2]
[339403859,1727574632742,-500.0,0.00015574,2]
[339403860,1727574632751,-500.0,0.00015574,2]
[339403861,1727574632761,-500.0,0.00015574,2]
[339403862,1727574632772,-500.0,0.00015574,2]
[339403863,1727574632782,-500.0,0.00015574,2]
[339403864,1727574632794,-500.0,0.00015574,2]
[339403865,1727574632804,-500.0,0.00015574,2]
[339403866,1727574632815,-500.0,0.00015574,2]
[339403867,1727574632826,-500.0,0.00015574,2]
[339403868,1727574632836,-500.0,0.00015574,2]
[339403869,1727574632847,-500.0,0.00015574,2]
[339403870,1727574632858,-500.0,0.00015574,2]
[339403871,1727574632867,-500.0,0.00015574,2]
[339403872,1727574632878,-500.0,0.00015574,2]
[339403873,1727574632888,-500.0,0.00015574,2]
[339403874,1727574632899,-286.89213818,0.00015574,2]
[339403979,1727575489933,1254.2004201,0.00014049,2]
[339404008,1727575575562,710.0,0.00011,2]
[339404011,1727575609577,326.9151823,0.00014038,2]
[339404015,1727575748309,2744.4305478,0.00014005,2]
[339404016,1727575768153,-316.66101371,0.00014295,2]
[339404030,1727575832774,-124.00302129,0.00014295,2]
[339404031,1727575832784,-191.869587,0.0001476,2]
[339404032,1727575832795,-191.869587,0.00014801,2]
[339404033,1727575832804,-243.898225,0.00014805,2]
[339404034,1727575832814,-148.35957971,0.00014827,2]
[339404035,1727575832825,-581.97056146,0.00014827,2]
[339404065,1727575838702,-2874.72852195,0.00014827,2]
[339404066,1727575838717,-1938.63892331,0.00014827,2]
[339404067,1727575838730,-1286.02805951,0.00014827,2]
[339404068,1727575838871,-191.869587,0.00014841,2]
[339404069,1727575838882,-191.869587,0.00014882,2]
[339404070,1727575838893,-191.869587,0.00014922,2]
[339404072,1727575838902,-191.869587,0.00014963,2]
[339404074,1727575838911,-300.0,0.00014979,2]
[339404075,1727575838922,-161.02133726,0.00014979,2]
[339404076,1727575838935,-138.97866274,0.00014979,2]
[339404077,1727575838944,-440.664035,0.0001498,2]
[339404078,1727575838953,-191.869587,0.00015003,2]
[339404079,1727575838963,-191.869587,0.00015044,2]
[339404080,1727575838974,-191.869587,0.00015084,2]
[339404081,1727575838983,-7067.94404438,0.0001509,2]
[339404082,1727575838993,-307.47326875,0.00015121,2]
[339404083,1727575839002,-500.0,0.00015121,2]
[339404084,1727575839011,-500.0,0.00015121,2]
[339404085,1727575839021,-500.0,0.00015121,2]
[339404086,1727575839030,-500.0,0.00015121,2]
[339404087,1727575839039,-500.0,0.00015121,2]
[339404088,1727575839048,-500.0,0.00015121,2]
[339404089,1727575839057,-500.0,0.00015121,2]
[339404090,1727575839066,-500.0,0.00015121,2]
[339404091,1727575839075,-500.0,0.00015121,2]
[339404092,1727575839084,-500.0,0.00015121,2]
[339404093,1727575839095,-500.0,0.00015121,2]
[339404094,1727575839106,-500.0,0.00015121,2]
[339404095,1727575839115,-500.0,0.00015121,2]
[339404096,1727575839125,-500.0,0.00015121,2]
[339404097,1727575839134,-500.0,0.00015121,2]
[339404098,1727575839145,-500.0,0.00015121,2]
[339404099,1727575839155,-500.0,0.00015121,2]
[339404100,1727575839167,-500.0,0.00015121,2]
[339404101,1727575839178,-500.0,0.00015121,2]
[339404103,1727575839188,-166.7312294,0.00015121,2]
[339404105,1727575839198,-500.0,0.00015121,2]
[339404107,1727575839207,-500.0,0.00015121,2]
[339404109,1727575839217,-500.0,0.00015121,2]
[339404111,1727575839226,-500.0,0.00015121,2]
[339404113,1727575839236,-500.0,0.00015121,2]
[339404115,1727575839246,-670.35148952,0.00015122,2]
[339404117,1727575839256,-191.869587,0.00015125,2]
[339404119,1727575839266,-191.869587,0.00015165,2]
[339404120,1727575839276,-500.0,0.000152,2]
[339404122,1727575839286,-500.0,0.000152,2]
[339404124,1727575839295,-500.0,0.000152,2]
[339404125,1727575839305,-500.0,0.000152,2]
[339404126,1727575839314,-501.28150447,0.000152,2]
[339404127,1727575839326,-500.0,0.000152,2]
[339404128,1727575839336,-191.869587,0.00015206,2]
[339404129,1727575839345,-191.869587,0.00015246,2]
[339404130,1727575839354,-191.869587,0.00015287,2]
[339404131,1727575839365,-191.869587,0.00015327,2]
[339404132,1727575839374,-191.869587,0.00015368,2]
[339404133,1727575839384,-2742.81265091,0.000154,2]
[339404134,1727575839393,-191.869587,0.00015408,2]
[339404135,1727575839403,-191.869587,0.00015449,2]
[339404136,1727575839413,-191.869587,0.00015489,2]
[339404137,1727575839423,-2000.0,0.000155,2]
[339404138,1727575839432,-2000.0,0.000155,3]
[339404139,1727575839442,-2000.0,0.000155,4]
[339404140,1727575839452,-191.869587,0.0001553,2]
[339404141,1727575839463,-302.39252435,0.00015574,2]
[339404142,1727575839472,-440.664035,0.00015664,2]
[339404143,1727575839481,-1190.79514175,0.00015737,2]
[339404144,1727575839491,-1000.0,0.00015748,2]
[339404145,1727575839501,-787.54060392,0.00015748,2]
[339404146,1727575839510,-1000.0,0.00015748,2]
[339404147,1727575839523,-509.49762043,0.00015748,2]
[339404148,1727575839532,-1000.0,0.00015748,2]
[339404149,1727575839542,-701.25319563,0.00016183,2]
[339404150,1727575839551,-184.65828873,0.0001631,2]
[339404151,1727575839562,-281.63584215,0.00016389,2]
[339404152,1727575839573,-500.0,0.00016389,2]
[339404153,1727575839583,-500.0,0.00016389,2]
[339404154,1727575839593,-536.05723652,0.00016389,2]
[339404155,1727575839604,-500.0,0.00016389,2]
[339404156,1727575839613,-374.34703667,0.00016389,2]
[339404157,1727575839623,-500.0,0.00016389,2]
[339404158,1727575839633,-30296.7886849,0.0001639,2]
[339404159,1727575839643,-98595.0310739,0.0001639,2]
[339404160,1727575839653,-420.0,0.00016393,2]
[339404161,1727575839663,-65870.71212504,0.000164,2]
[339404162,1727575839672,-5000.0,0.000164,2]
[339404163,1727575839683,-190.0,0.0001641,2]
[339404164,1727575839692,-5000.0,0.0001641,2]
[339404165,1727575839701,-1000.0,0.00016428,2]
[339404166,1727575839713,-1500.0,0.00016459,2]
[339404167,1727575839724,-1500.0,0.00016459,2]
[339404168,1727575839733,-985.51141712,0.00016459,2]
[339404169,1727575839744,-420.0,0.00016476,2]
[339404170,1727575839755,-184.65828872,0.00016518,2]
[339404171,1727575839766,-2022.57323305,0.00016518,2]
[339404172,1727575839778,-121187.154739,0.00016518,2]
[339404173,1727575839789,-394380.124296,0.00016518,2]
[339404174,1727575839799,-218.409727,0.00016519,2]
[339404175,1727575839810,-151.0,0.00016519,2]
[339404176,1727575839820,-151.0,0.00016519,2]
[339404177,1727575839831,-151.0,0.00016519,2]
[339404178,1727575839842,-155.893003,0.00016519,2]
[339404179,1727575839853,-151.0,0.00016519,2]
[339404180,1727575839863,-151.0,0.00016519,2]
[339404181,1727575839875,-188.084706,0.00016519,2]
[339404182,1727575839886,-151.0,0.00016519,2]
[339404183,1727575839895,-188.084706,0.00016519,2]
[339404184,1727575839905,-151.0,0.00016519,2]
[339404185,1727575839914,-157.81952886,0.00016562,2]
[339404186,1727575839923,-500.0,0.00016573,2]
[339404187,1727575839932,-500.0,0.00016573,2]
[339404188,1727575839943,-500.0,0.00016573,2]
[339404189,1727575839955,-500.0,0.00016573,2]
[339404190,1727575839965,-500.0,0.00016573,2]
[339404191,1727575839974,-500.0,0.00016573,2]
[339404192,1727575839984,-500.0,0.00016573,2]
[339404193,1727575839994,-500.0,0.00016573,2]
[339404194,1727575840005,-500.0,0.00016573,2]
[339404195,1727575840014,-150.112233,0.000166,2]
[339404196,1727575840024,-150.112244,0.000166,2]
[339404198,1727575840033,-151.0,0.00016608,2]
[339404200,1727575840042,-151.0,0.00016608,2]
[339404201,1727575840053,-157.978233,0.00016608,2]
[339404202,1727575840063,-188.084706,0.00016608,2]
[339404203,1727575840075,-212077.520794,0.00016608,2]
[339404204,1727575840084,-13880.64848575,0.00016609,2]
[339404218,1727575840742,-188.084706,0.00016519,2]
[339404219,1727575840753,-313.89738171,0.00016609,2]
[339404220,1727575840766,-935.89830891,0.00016609,2]
[339404221,1727575840778,-432.98714827,0.00016609,2]
[339404222,1727575840790,-285.29888257,0.00016609,2]
[339404243,1727575955901,1000.0,0.00021,60]
[339404262,1727576112673,155.0,0.00021,60]
[339404286,1727576582818,24900.0,0.00013947,2]
[339404303,1727576660798,82796.81420342,0.00021,60]
[339404311,1727576815144,-236.597569,0.00014204,2]
[339404312,1727576815167,-54.22311789,0.0001431,2]
[339404439,1727577038873,-290.8084292,0.00014198,2]
[339404440,1727577038884,-133.27689111,0.0001431,2]
[339404441,1727577038894,-187.500009,0.00014559,2]
[339404442,1727577038903,-236.597569,0.00014573,2]
[339404443,1727577038913,-187.500009,0.00014807,2]
[339404444,1727577038923,-187.500009,0.00015056,2]
[339404445,1727577038933,-300.0,0.00015299,2]
[339404446,1727577038942,-300.0,0.00015299,2]
[339404447,1727577038952,-501.81530745,0.000153,2]
[339404448,1727577038962,-500.0,0.000153,2]
[339404449,1727577038975,-501.09372543,0.000153,2]
[339404450,1727577038984,-501.08989387,0.000153,2]
[339404451,1727577038994,-501.71003976,0.000153,2]
[339404452,1727577039004,-500.0,0.000153,2]
[339404453,1727577039015,-500.0,0.000153,2]
[339404454,1727577039025,-500.0,0.000153,2]
[339404455,1727577039035,-2000.0,0.000155,2]
[339404456,1727577039045,-2000.0,0.000155,3]
[339404457,1727577039055,-500.0,0.00015847,2]
[339404458,1727577039069,-500.0,0.00015847,2]
[339404459,1727577039079,-250.0,0.00015847,2]
[339404460,1727577039089,-500.0,0.00015847,2]
[339404461,1727577039100,-500.0,0.00015847,2]
[339404462,1727577039111,-500.0,0.00015847,2]
[339404463,1727577039120,-500.0,0.00015847,2]
[339404464,1727577039130,-500.0,0.00015847,2]
[339404465,1727577039140,-500.0,0.00015847,2]
[339404466,1727577039150,-500.0,0.00015847,2]
[339404467,1727577039160,-500.0,0.00015847,2]
[339404468,1727577039170,-500.0,0.00015847,2]
[339404469,1727577039180,-500.0,0.00015847,2]
[339404471,1727577039190,-500.0,0.00015847,2]
[339404473,1727577039200,-500.0,0.00015847,2]
[339404474,1727577039210,-351.86407111,0.00015847,2]
[339404475,1727577039222,-500.0,0.00015847,2]
[339404476,1727577039236,-500.0,0.00015847,2]
[339404477,1727577039247,-446.90099302,0.00015848,2]
[339404478,1727577039257,-1000.0,0.00015848,2]
[339404479,1727577039266,-1000.0,0.00015848,2]
[339404480,1727577039276,-330.03049475,0.00015848,2]
[339404481,1727577039285,-757.39989761,0.00015848,2]
[339404482,1727577039295,-476.81265978,0.00016142,2]
[339404483,1727577039305,-7067.94404438,0.00016211,2]
[339404484,1727577039315,-1000.0,0.00016419,2]
[339404485,1727577039325,-180.4434502,0.00016423,2]
[339404486,1727577039335,-195.0,0.0001643,2]
[339404487,1727577039345,-180.4434502,0.00016432,2]
[339404488,1727577039354,-4228.51561643,0.00016498,2]
[339404539,1727578005176,-246.543131,0.00015493,2]
[339404540,1727578005198,-2482.54037488,0.00016358,2]
[339404600,1727578238084,-199.0,0.0001637,2]
[339404601,1727578238093,-2399.96106959,0.00016408,2]
[339404602,1727578238103,-392.07776751,0.00016428,2]
[339404603,1727578238112,-1820.3159097,0.00016429,2]
[339404604,1727578238121,-300.0,0.00016432,2]
[339404605,1727578238131,-1000.0,0.00016433,2]
[339404606,1727578238140,-250.0,0.00016499,2]
[339404607,1727578238150,-300.0,0.00016499,2]
[339404608,1727578238159,-2000.0,0.000165,4]
[339404609,1727578238169,-2000.0,0.000165,5]
[339404610,1727578238178,-2000.0,0.000165,6]
[339404611,1727578238187,-2000.0,0.000165,7]
[339404612,1727578238196,-1008.7,0.000165,8]
[339404613,1727578238206,-150.112233,0.000165,2]
[339404614,1727578238215,-150.112233,0.000165,2]
[339404615,1727578238224,-150.112233,0.000165,2]
[339404616,1727578238234,-150.112233,0.000165,2]
[339404617,1727578238243,-150.112233,0.000165,2]
[339404618,1727578238251,-150.112233,0.000165,2]
[339404619,1727578238262,-4.18291753,0.000165,2]
[339404642,1727578240016,-145.92931547,0.000165,2]
[339404643,1727578240026,-150.112233,0.000165,2]
[339404644,1727578240035,-89.50728292,0.000165,2]
[339404654,1727578243056,-60.60495008,0.000165,2]
[339404655,1727578243067,-150.112233,0.000165,2]
[339404656,1727578243077,-92.51431757,0.000165,2]
[339404691,1727578246008,-57.59791543,0.000165,2]
[339404692,1727578246018,-153.0,0.000165,2]
[339404693,1727578246027,-308.75384938,0.00016507,2]
[339404694,1727578246036,-109.57823519,0.00016507,3]
[339404697,1727578350816,290.23765649,0.00021,60]
[339404736,1727579166676,10000.0,0.00014114,2]
[339404740,1727579182949,2100.0,0.00014114,2]
[339404745,1727579251964,99999.0,0.00014,2]
[339404750,1727579351841,265.99425845,0.00014114,2]
[339404762,1727579432129,-300.0,0.000147,2]
[339404764,1727579432139,-300.0,0.000147,2]
[339404766,1727579432148,-24900.0,0.00014701,2]
[339404768,1727579432158,-483.85816902,0.00014701,2]
[339404770,1727579432168,-1309.183616,0.00015188,2]
[339404772,1727579432177,-2136.82264957,0.00015359,2]
[339404774,1727579432187,-500.0,0.00015459,2]
[339404776,1727579432196,-500.0,0.00015459,2]
[339404778,1727579432206,-500.0,0.00015459,2]
[339404780,1727579432215,-500.0,0.00015459,2]
[339404782,1727579432225,-562.98640711,0.00015459,2]
[339404784,1727579432234,-500.0,0.00015459,2]
[339404786,1727579432244,-500.0,0.00015459,2]
[339404788,1727579432254,-500.0,0.00015459,2]
[339404790,1727579432263,-500.0,0.00015459,2]
[339404792,1727579432273,-500.0,0.00015459,2]
[339404794,1727579432283,-500.0,0.00015459,2]
[339404796,1727579432292,-500.0,0.00015459,2]
[339404799,1727579432303,-500.0,0.00015459,2]
[339404801,1727579432312,-500.0,0.00015459,2]
[339404802,1727579432321,-500.0,0.00015459,2]
[339404804,1727579432331,-500.0,0.00015459,2]
[339404806,1727579432340,-500.0,0.00015459,2]
[339404808,1727579432349,-500.0,0.00015459,2]
[339404810,1727579432358,-500.0,0.00015459,2]
[339404812,1727579432367,-500.0,0.00015459,2]
[339404814,1727579432377,-500.0,0.00015459,2]
[339404816,1727579432386,-500.0,0.00015459,2]
[339404818,1727579432398,-400.0,0.00015459,2]
[339404819,1727579432408,-500.0,0.00015459,2]
[339404822,1727579432418,-500.0,0.00015459,2]
[339404824,1727579432428,-1309.183616,0.00015873,2]
[339404827,1727579432448,-420.0,0.00016093,2]
[339404829,1727579432460,-489.83993336,0.00016102,2]
[339404831,1727579432470,-420.0,0.0001617,2]
[339404833,1727579432480,-1283.81665337,0.00016273,2]
[339404836,1727579432495,-5107.47999749,0.00016273,2]
[339404907,1727579438323,-500.0,0.000155,2]
[339404908,1727579438333,-1001.6414538,0.00016048,2]
[339404909,1727579438342,-640.3585462,0.00016273,2]
[339404910,1727579438512,-36.28884732,0.00016273,2]
[339404911,1727579438522,-153.0,0.00016352,2]
[339404912,1727579438532,-157.81952886,0.00016368,2]
[339404913,1727579438542,-1000.0,0.00016398,2]
[339404914,1727579438552,-18340.88914001,0.00016398,2]
[339404929,1727579440439,-1000.0,0.00016333,2]
[339404930,1727579440449,-70547.11085999,0.00016398,2]
[339404931,1727579440459,-178.27518458,0.000164,2]
[339404932,1727579440469,-178.27518457,0.00016406,2]
[339404933,1727579440479,-178.27518457,0.00016412,2]
[339404934,1727579440489,-178.27518457,0.00016417,2]
[339404935,1727579440499,-203.0,0.0001642,2]
[339404936,1727579440508,-178.27518457,0.00016423,2]
[339404937,1727579440518,-1865.31160704,0.00016428,2]
[339404938,1727579440528,-567.20763417,0.00016432,2]
[339404939,1727579440538,-212.96703184,0.00016432,2]
[339404940,1727579440548,-500.0,0.00016432,2]
[339404941,1727579440558,-11305.10705175,0.00016433,2]
[339404953,1727579443280,-280.8774325,0.000155,2]
[339404954,1727579443292,-219.1225675,0.000155,2]
[339404955,1727579443301,-1000.0,0.00016048,2]
[339404956,1727579443311,-1780.8774325,0.00016433,2]
[339404986,1727579600228,674.0,0.0001322,2]